fUST/lending_fUST_20251101
["ID","MTS","AMOUNT","RATE_DAILY","PERIOD"]
[392776915,1761943833268,-500.0,0.0003722,15]
[392776917,1761943833277,-3916.6691358,0.00037221,2]
[392776919,1761943833287,-213.984633,0.00037221,2]
[392776921,1761943833295,-1508.4322006,0.00037221,2]
[392776922,1761943833305,-4363.2398766,0.00037221,2]
[392776924,1761943833314,-2379.33723742,0.00037398,2]
[392776926,1761943833323,-533.82137601,0.00037398,2]
[392776927,1761943833333,-744.67474046,0.00037407,2]
[392776929,1761943833343,-154.22493,0.00037451,2]
[392776931,1761943833352,-151.669383,0.00037451,2]
[392776933,1761943833361,-554.15,0.00037487,3]
[392776935,1761943833371,-58049.9257474,0.00037488,3]
[392776937,1761943833380,-58049.9257474,0.00037497,3]
[392776939,1761943833389,-151.0,0.000375,11]
[392776941,1761943833399,-151.0,0.000375,13]
[392776943,1761943833408,-206.1093,0.000375,2]
[392776945,1761943833417,-160.0,0.00037507,2]
[392776947,1761943833426,-668580.76067491,0.00037507,2]
[392776949,1761943833439,-4807.60156251,0.00037507,2]
[392777025,1761943838186,-403.89093407,0.00035833,2]
[392777026,1761943838196,-11611.63776258,0.00037507,2]
[392777027,1761943838205,-500.0,0.00037507,30]
[392777028,1761943838215,-744.67474046,0.00037518,2]
[392777029,1761943838224,-823.0,0.00037521,2]
[392777030,1761943838233,-297.57,0.000376,14]
[392777031,1761943838245,-151.0,0.00037617,30]
[392777032,1761943838255,-151.0,0.00037617,30]
[392777033,1761943838264,-267.74703138,0.00037617,30]
[392777034,1761943838274,-1000.0,0.00037617,30]
[392777035,1761943838284,-300.0,0.00037617,30]
[392777036,1761943838293,-1028.13691268,0.00037617,30]
[392777037,1761943838303,-311.1,0.00037617,30]
[392777038,1761943838312,-151.0,0.00037617,30]
[392777039,1761943838321,-156.587,0.00037617,30]
[392777040,1761943838331,-162.380719,0.00037617,30]
[392777041,1761943838340,-59.33889344,0.00037617,30]
[392777042,1761943838352,-109.04991216,0.00037617,30]
[392777043,1761943838361,-174.61919141,0.00037617,30]
[392777044,1761943838370,-181.08010149,0.00037617,30]
[392777045,1761943838380,-272.90223052,0.00037617,30]
[392777046,1761943838389,-744.67474046,0.00037629,2]
[392777047,1761943838398,-186.2402378,0.00037655,2]
[392777048,1761943838408,-197.525194,0.00037729,2]
[392777049,1761943838417,-197.525194,0.00037729,2]
[392777050,1761943838426,-197.525194,0.00037729,2]
[392777051,1761943838435,-197.525194,0.00037729,2]
[392777052,1761943838445,-97.79627098,0.00037729,2]
[392777113,1761943843329,-99.72892302,0.00037729,2]
[392777114,1761943843338,-197.525194,0.00037729,2]
[392777115,1761943843348,-197.525194,0.00037729,2]
[392777116,1761943843357,-197.525194,0.00037729,2]
[392777117,1761943843366,-197.525194,0.00037729,2]
[392777118,1761943843375,-197.525194,0.00037729,2]
[392777119,1761943843385,-197.525194,0.00037729,2]
[392777120,1761943843394,-197.525194,0.00037729,2]
[392777121,1761943843404,-197.525194,0.00037729,2]
[392777122,1761943843412,-197.525194,0.00037729,2]
[392777123,1761943843421,-197.525194,0.00037729,2]
[392777124,1761943843431,-197.525194,0.00037729,2]
[392777125,1761943843439,-197.525194,0.00037729,2]
[392777126,1761943843449,-197.525194,0.00037729,2]
[392777127,1761943843458,-197.525194,0.00037729,2]
[392777128,1761943843467,-197.525186,0.00037729,2]
[392777129,1761943843476,-815.49317498,0.00037729,20]
[392777133,1761943846387,-500.0,0.00037729,20]
[392777136,1761943857343,150.0,0.0002589,2]
[392777142,1761944130675,7167.91616575,0.000259,2]
[392777143,1761944130697,10000.01,0.000259,2]
[392777144,1761944130718,2832.07383425,0.000259,2]
[392777145,1761944171799,150.0,0.0002589,2]
[392777149,1761944403159,370.78663527,0.00025205,2]
[392777150,1761944486318,150.0,0.0002589,2]
[392777157,1761944713511,200.46683957,0.00025,120]
[392777158,1761944800288,150.0,0.0002589,2]
[392777184,1761945032624,-177.0,0.0002789,2]
[392777185,1761945032635,-200.0,0.0002789,2]
[392777186,1761945032644,-204.0,0.0002989,2]
[392777187,1761945032654,-150.0,0.0003013,2]
[392777188,1761945032664,-231.0,0.0003189,2]
[392777189,1761945032673,-160.0,0.00032078,2]
[392777190,1761945032684,-132.49979616,0.00032094,2]
[392777191,1761945032714,-117.50020384,0.00032094,2]
[392777194,1761945032733,-4781.8075239,0.00032332,2]
[392777197,1761945032744,-317.1338862,0.0003239,2]
[392777199,1761945032753,-327.0,0.00033889,2]
[392777202,1761945032763,-258.0,0.0003389,120]
[392777204,1761945032773,-500.0,0.0003433,4]
[392777205,1761945032783,-281.39414013,0.0003433,4]
[392777207,1761945032793,-500.0,0.0003433,4]
[392777210,1761945032803,-500.0,0.0003433,4]
[392777211,1761945032812,-1941.69011676,0.0003456,2]
[392777212,1761945032821,-453.22623386,0.000346,20]
[392777248,1761945038431,-2546.77376614,0.000346,20]
[392777250,1761945038441,-3000.0,0.0003461,20]
[392777252,1761945038451,-3000.0,0.0003462,20]
[392777254,1761945038461,-2808.26494565,0.0003463,20]
[392777256,1761945038472,-191.73505435,0.0003463,20]
[392777258,1761945038481,-1401.18514323,0.0003464,20]
[392777260,1761945038493,-1598.81485677,0.0003464,20]
[392777262,1761945038503,-3000.0,0.0003465,20]
[392777264,1761945038512,-3000.0,0.0003466,20]
[392777266,1761945038522,-3000.0,0.0003467,20]
[392777268,1761945038531,-500.0,0.00034679,2]
[392777270,1761945038540,-500.0,0.00034679,7]
[392777272,1761945038550,-606.281836,0.00034679,7]
[392777274,1761945038559,-500.0,0.00034679,2]
[392777276,1761945038568,-500.0,0.00034679,7]
[392777278,1761945038577,-500.0,0.00034679,7]
[392777280,1761945038586,-297.40411272,0.00034679,2]
[392777282,1761945038596,-2190.2863646,0.0003468,20]
[392777284,1761945038608,-809.7136354,0.0003468,20]
[392777286,1761945038618,-3000.0,0.0003469,20]
[392777288,1761945038627,-3000.0,0.000347,20]
[392777290,1761945038637,-3000.0,0.0003471,21]
[392777292,1761945038647,-3000.0,0.0003472,21]
[392777294,1761945038656,-3000.0,0.0003473,21]
[392777296,1761945038665,-3271.545354,0.0003474,21]
[392777298,1761945038675,-999.99,0.00035,2]
[392777300,1761945038684,-999.95,0.00035,2]
[392777301,1761945038694,-412.0,0.00035154,2]
[392777302,1761945038703,-150.0,0.00035366,2]
[392777304,1761945038712,-160.0,0.00035468,2]
[392777306,1761945038726,-285.0,0.0003589,120]
[392777308,1761945038735,-1130.63505243,0.0003716,2]
[392777310,1761945038744,-1000.0,0.00037245,2]
[392777312,1761945038753,-252.39605585,0.00037245,2]
[392777314,1761945038762,-151.0,0.00037245,2]
[392777316,1761945038773,-151.0,0.00037245,2]
[392777318,1761945038782,-151.0,0.00037245,2]
[392777320,1761945038792,-151.0,0.00037245,2]
[392777322,1761945038804,-151.0,0.00037245,2]
[392777324,1761945038813,-151.0,0.00037245,2]
[392777326,1761945038822,-151.0,0.00037245,2]
[392777328,1761945038831,-151.0,0.00037245,2]
[392777330,1761945038840,-151.0,0.00037245,2]
[392777332,1761945038849,-151.0,0.00037245,2]
[392777334,1761945038859,-151.0,0.00037245,2]
[392777336,1761945038869,-151.0,0.00037245,2]
[392777338,1761945038879,-151.0,0.00037245,2]
[392777340,1761945038888,-151.0,0.00037245,2]
[392777342,1761945038898,-151.0,0.00037245,2]
[392777344,1761945038907,-151.0,0.00037245,2]
[392777346,1761945038916,-151.0,0.00037245,2]
[392777348,1761945038926,-151.0,0.00037245,2]
[392777350,1761945038935,-151.0,0.00037245,2]
[392777352,1761945038944,-151.0,0.00037245,2]
[392777354,1761945038953,-223.39491623,0.00037245,2]
[392777356,1761945038962,-1869.88997408,0.00037265,2]
[392777427,1761945040837,-3395.06652036,0.00037265,2]
[392777428,1761945040846,-5264.95649443,0.00037271,2]
[392777429,1761945040856,-5264.95649443,0.00037276,2]
[392777430,1761945040865,-5264.95649443,0.00037282,2]
[392777431,1761945040875,-5264.95649443,0.00037287,2]
[392777432,1761945040884,-281.26563555,0.00037287,2]
[392777433,1761945040895,-1130.63505244,0.0003731,2]
[392777434,1761945040904,-154.22493,0.00037347,4]
[392777435,1761945040914,-151.669383,0.00037347,4]
[392777436,1761945040924,-424.00547228,0.00037352,2]
[392777437,1761945040936,-1588.57956166,0.00037352,2]
[392777438,1761945040946,-5110.61782811,0.00037357,3]
[392777456,1761945043554,-3857.3,0.00037357,3]
[392777479,1761945115074,150.0,0.0002589,2]
[392777484,1761945427602,150.0,0.0002589,2]
[392777487,1761945669981,9550.01,0.00023,4]
[392777488,1761945670003,10000.01,0.00023,4]
[392777489,1761945670024,3449.98,0.00023,4]
[392777490,1761945739550,150.0,0.0002589,2]
[392777501,1761946052761,150.0,0.0002589,2]
[392777505,1761946103098,2318.83798029,0.0002,2]
[392777506,1761946109662,189.30156421,0.00030137,120]
[392777507,1761946110309,3931.19201971,0.00026,30]
[392777508,1761946110331,10000.01,0.00026,30]
[392777509,1761946110352,10000.01,0.00026,30]
[392777510,1761946110374,10000.01,0.00026,30]
[392777511,1761946110396,9856.61880939,0.00026,30]
[392777512,1761946112728,143.39119061,0.0002,2]
[392777513,1761946112750,1596.11779872,0.0002,2]
[392777514,1761946115275,8403.89220128,0.0002465,2]
[392777515,1761946115299,10000.01,0.0002465,2]
[392777516,1761946115323,10000.01,0.0002465,2]
[392777517,1761946115347,10000.01,0.0002465,2]
[392777518,1761946115370,3355.17168503,0.0002465,2]
[392777519,1761946115396,509.97887887,0.0002465,2]
[392777520,1761946115423,461.552242,0.00024,2]
[392777521,1761946117056,1742.11517525,0.00024142,2]
[392777522,1761946125440,5000.0,0.00026,2]
[392777523,1761946133269,3257.89482475,0.00026,2]
[392777524,1761946133296,1742.10517525,0.00026,2]
[392777525,1761946141688,5000.0,0.00026,2]
[392777527,1761946149960,3257.90482475,0.00026,2]
[392777528,1761946149983,1742.09517525,0.00026,2]
[392777529,1761946158575,3737.88097111,0.00026,2]
[392777530,1761946166261,4520.03385364,0.00026,2]
[392777531,1761946166286,479.96614636,0.00026,2]
[392777532,1761946174425,5000.0,0.00026,2]
[392777533,1761946190103,4520.04385364,0.00026,2]
[392777534,1761946190125,479.95614636,0.00026,2]
[392777536,1761946197886,5000.0,0.00026,2]
[392777537,1761946212974,4520.05385364,0.00026,2]
[392777538,1761946212997,479.94614636,0.00026,2]
[392777539,1761946220819,5000.0,0.00026,2]
[392777561,1761946232616,-177.0,0.0002789,2]
[392777562,1761946232625,-200.0,0.0002789,2]
[392777563,1761946232634,-211.2896172,0.00028252,2]
[392777564,1761946232643,-220.0,0.00029559,2]
[392777565,1761946232652,-438.03393366,0.00029559,2]
[392777566,1761946232660,-57653.19952589,0.0002956,2]
[392777567,1761946232671,-286.81356417,0.0002956,2]
[392777568,1761946232681,-558.76753725,0.0002956,2]
[392777569,1761946232729,-12878.91222101,0.0002956,2]
[392777662,1761946235969,4520.06385364,0.00026,2]
[392777663,1761946235993,479.93614636,0.00026,2]
[392777672,1761946238514,-1388.9730198,0.0002956,2]
[392777766,1761946243731,-22233.33413188,0.0002956,2]
[392777767,1761946243740,-1737.73983189,0.000299,2]
[392777768,1761946243749,-2087.6962962,0.0003,2]
[392777769,1761946243758,-2031.62181378,0.0003,2]
[392777770,1761946243767,-13152.4530573,0.0003,2]
[392777771,1761946243775,-1737.73983183,0.00034821,2]
[392777772,1761946243784,-4897.6845862,0.000363,2]
[392777773,1761946243793,-412.0,0.000363,2]
[392777774,1761946243802,-315.0,0.00036407,2]
[392777775,1761946243810,-3303.1384086,0.0003648,2]
[392777776,1761946243819,-1190.8033345,0.0003648,2]
[392777777,1761946243828,-1561.2620496,0.0003648,2]
[392777778,1761946243837,-3535.54305227,0.0003699,2]
[392777779,1761946243846,-574.94671786,0.0003706,2]
[392777780,1761946243854,-6032.92454119,0.0003706,2]
[392777781,1761946243863,-151.0,0.00037148,2]
[392777782,1761946243873,-151.0,0.00037148,2]
[392777783,1761946243881,-151.0,0.00037148,2]
[392777784,1761946243890,-151.0,0.00037148,2]
[392777785,1761946243898,-151.0,0.00037148,2]
[392777786,1761946243907,-151.0,0.00037148,2]
[392777787,1761946243916,-151.0,0.00037148,2]
[392777788,1761946243925,-151.0,0.00037148,2]
[392777789,1761946243934,-151.0,0.00037148,2]
[392777790,1761946243942,-151.0,0.00037148,2]
[392777791,1761946243951,-151.0,0.00037148,2]
[392777792,1761946243959,-151.0,0.00037148,2]
[392777793,1761946243968,-151.0,0.00037148,2]
[392777794,1761946243976,-151.0,0.00037148,2]
[392777795,1761946243985,-151.0,0.00037148,2]
[392777796,1761946243994,-151.0,0.00037148,2]
[392777797,1761946244002,-151.0,0.00037148,2]
[392777798,1761946244011,-151.0,0.00037148,2]
[392777799,1761946244020,-151.0,0.00037148,2]
[392777800,1761946244028,-151.0,0.00037148,2]
[392777801,1761946244037,-161354.4423469,0.0003715,3]
[392777802,1761946244064,5000.0,0.00026,2]
[392777814,1761946246685,-2571.29047449,0.0003715,3]
[392777815,1761946247462,-3538.19455488,0.0003715,3]
[392777816,1761946258967,4520.07385364,0.00026,2]
[392777817,1761946258990,479.92614636,0.00026,2]
[392777819,1761946267260,5000.0,0.00026,2]
[392777820,1761946282325,4520.08385364,0.00026,2]
[392777821,1761946282348,479.91614636,0.00026,2]
[392777822,1761946290068,5000.0,0.00026,2]
[392777823,1761946305825,4520.09385364,0.00026,2]
[392777824,1761946305848,479.90614636,0.00026,2]
[392777825,1761946314052,5000.0,0.00026,2]
[392777826,1761946329239,4520.10385364,0.00026,2]
[392777827,1761946329263,479.89614636,0.00026,2]
[392777828,1761946337033,5000.0,0.00026,2]
[392777829,1761946352724,4520.11385364,0.00026,2]
[392777830,1761946352746,479.88614636,0.00026,2]
[392777831,1761946360472,1799.69863394,0.00026,2]
[392777832,1761946364789,150.0,0.0002589,2]
[392777833,1761946375630,5000.0,0.00026,2]
[392777834,1761946397900,2570.4252197,0.00026,2]
[392777835,1761946397922,2429.5747803,0.00026,2]
[392777837,1761946420284,5000.0,0.00026,2]
[392777838,1761946443261,2570.4352197,0.00026,2]
[392777839,1761946443287,2429.5647803,0.00026,2]
[392777840,1761946465986,5000.0,0.00026,2]
[392777841,1761946488889,2570.4452197,0.00026,2]
[392777842,1761946488917,2429.5547803,0.00026,2]
[392777843,1761946511666,5000.0,0.00026,2]
[392777844,1761946533806,2570.4552197,0.00026,2]
[392777845,1761946535459,-1139.85659663,0.00026,2]
[392777846,1761946535577,-1097.08148929,0.00026,2]
[392777847,1761946676864,169.5275029,0.00025603,2]
[392777848,1761946702229,1058.70039989,0.00025475,14]
[392777849,1761946726121,5000.0,0.00026,2]
[392777852,1761946748282,3771.78209721,0.00026,2]
[392777853,1761946748307,1228.21790279,0.00026,2]
[392777860,1761946770546,5000.0,0.00026,2]
[392777861,1761946792767,3771.79209721,0.00026,2]
[392777862,1761946792794,1228.20790279,0.00026,2]
[392777863,1761946815498,5000.0,0.00026,2]
[392777864,1761946838411,3771.80209721,0.00026,2]
[392777865,1761946838439,1228.19790279,0.00026,2]
[392777869,1761946860568,5000.0,0.00026,2]
[392777870,1761946977160,426.621708,0.00013699,2]
[392777871,1761946977331,426.621708,0.00020187,2]
[392777872,1761946987766,150.0,0.0002589,2]
[392777878,1761947272142,150.0,0.00025452,2]
[392777883,1761947406208,150.0,0.00025559,2]
[392777887,1761947431937,-426.621708,0.00026676,2]
[392777888,1761947431947,-150.0,0.00027882,2]
[392777889,1761947431956,-830.35,0.00029559,4]
[392777890,1761947431965,-500.0,0.00029559,4]
[392777891,1761947431975,-830.35,0.00029833,4]
[392777892,1761947431984,-500.0,0.00029833,4]
[392777894,1761947431993,-204.78825,0.0003,2]
[392777896,1761947432003,-830.35,0.00030107,4]
[392777898,1761947432012,-500.0,0.00030107,4]
[392777900,1761947432021,-150.0,0.00030206,2]
[392777902,1761947432031,-830.35,0.00030381,4]
[392777905,1761947432040,-500.0,0.00030381,4]
[392777908,1761947432049,-830.35,0.00030655,4]
[392777911,1761947432057,-500.0,0.00030655,4]
[392777914,1761947432067,-830.35,0.00030929,4]
[392777916,1761947432075,-500.0,0.00030929,4]
[392777918,1761947432084,-830.35,0.00031203,4]
[392777919,1761947432093,-500.0,0.00031203,4]
[392777920,1761947432102,-830.35,0.00031477,4]
[392777921,1761947432111,-500.0,0.00031477,4]
[392777922,1761947432120,-830.35,0.00031751,4]
[392777923,1761947432129,-500.0,0.00031751,4]
[392777924,1761947432138,-830.35,0.00032025,4]
[392777925,1761947432147,-500.0,0.00032025,4]
[392777926,1761947432155,-160.0,0.0003214,2]
[392777927,1761947432165,-830.35,0.00032299,4]
[392777928,1761947432174,-500.0,0.00032299,4]
[392777929,1761947432183,-150.0,0.00032529,2]
[392777930,1761947432191,-830.35,0.00032573,4]
[392777931,1761947432200,-500.0,0.00032573,4]
[392777933,1761947432210,-260.0,0.00032688,2]
[392777935,1761947432220,-830.35,0.00032847,4]
[392777937,1761947432229,-500.0,0.00032847,4]
[392777939,1761947432238,-830.35,0.00033121,4]
[392777941,1761947432248,-500.0,0.00033121,4]
[392777943,1761947432257,-426.621708,0.00033165,2]
[392777945,1761947432266,-360.0,0.00033236,2]
[392777947,1761947432275,-830.35,0.00033395,4]
[392777949,1761947432284,-107.71172495,0.00033395,4]
[392777952,1761947432302,-392.28827505,0.00033395,4]
[392777954,1761947432311,-830.35,0.00033669,4]
[392777956,1761947432320,-500.0,0.00033669,4]
[392777958,1761947432329,-460.0,0.00033784,2]
[392777960,1761947432338,-830.35,0.00033943,4]
[392777962,1761947432347,-500.0,0.00033943,4]
[392777964,1761947432356,-830.35,0.00034217,4]
[392777966,1761947432366,-500.0,0.00034217,4]
[392777968,1761947432375,-213.9846331,0.0003424,2]
[392777970,1761947432384,-1068.9264855,0.0003424,2]
[392777972,1761947432393,-164.4535777,0.0003424,2]
[392777974,1761947432402,-560.0,0.00034332,2]
[392777976,1761947432411,-830.35,0.00034491,4]
[392777978,1761947432420,-500.0,0.00034491,4]
[392777980,1761947432428,-694.76151212,0.00034665,2]
[392778310,1761947440168,-109.75684061,0.00034665,2]
[392778344,1761947446622,-498.78652116,0.00034665,2]
[392778345,1761947446633,-830.35,0.00034765,4]
[392778346,1761947446643,-491.99799892,0.00034765,4]
[392778347,1761947446653,-660.0,0.0003488,2]
[392778348,1761947446663,-3699.0,0.00035,120]
[392778349,1761947446673,-830.35,0.00035039,4]
[392778350,1761947446683,-830.35,0.00035313,4]
[392778351,1761947446693,-760.0,0.00035428,2]
[392778352,1761947446703,-830.35,0.00035587,4]
[392778353,1761947446713,-500.0,0.0003586,15]
[392778354,1761947446723,-500.0,0.0003586,15]
[392778355,1761947446732,-500.0,0.0003586,2]
[392778356,1761947446742,-500.0,0.0003586,15]
[392778357,1761947446751,-237.28849887,0.0003586,15]
[392778358,1761947446761,-500.0,0.0003586,15]
[392778359,1761947446770,-500.0,0.0003586,15]
[392778360,1761947446780,-500.0,0.0003586,15]
[392778361,1761947446790,-86.87442534,0.0003586,15]
[392781538,1761948212737,150.0,0.0002589,2]
[392781543,1761948342360,2318.56868121,0.00026,2]
[392781544,1761948342384,2681.43131879,0.00026,2]
[392781545,1761948350454,244.36394245,0.00026,2]
[392781546,1761948365538,5000.0,0.00026,2]
[392781547,1761948387815,2074.21473876,0.00026,2]
[392781548,1761948387838,2925.78526124,0.00026,2]
[392781549,1761948410083,5000.0,0.00026,2]
[392781550,1761948432381,2074.22473876,0.00026,2]
[392781551,1761948432405,2925.77526124,0.00026,2]
[392781554,1761948455186,1668.49000305,0.00026,2]
[392781555,1761948458039,500.0,0.000253,2]
[392781556,1761948462988,4905.74473571,0.00026,2]
[392781557,1761948463010,94.25526429,0.00026,2]
[392781558,1761948478606,1332.99394174,0.00026,2]
[392781559,1761948486460,5000.0,0.00026,2]
[392781563,1761948508793,272.06322253,0.00026,2]
[392781564,1761948524550,150.0,0.000258,2]
[392781565,1761948531101,3150.69757144,0.00026,2]
[392781566,1761948531123,1849.30242856,0.00026,2]
[392781567,1761948546211,4850.01,0.00026,2]
[392781574,1761948608466,500.0,0.000253,2]
[392781577,1761948632024,-153.4161496,0.00026396,2]
[392781578,1761948632034,-177.0,0.000278,2]
[392781579,1761948632043,-150.0,0.00028516,2]
[392781580,1761948632052,-204.0,0.000298,2]
[392781581,1761948632061,-629.0,0.00030135,2]
[392781582,1761948632070,-300.0,0.00030135,2]
[392781583,1761948632079,-300.0,0.00030135,2]
[392781584,1761948632089,-300.0,0.00030135,2]
[392781585,1761948632098,-400.0,0.00030135,2]
[392781586,1761948632107,-1600.0,0.00030135,2]
[392781587,1761948632116,-150.0,0.00031108,2]
[392781588,1761948632126,-400.0,0.00032272,3]
[392781589,1761948632135,-200.0,0.00032474,2]
[392781590,1761948632147,-2240.0,0.00032612,3]
[392781591,1761948632157,-500.0,0.00032673,5]
[392781592,1761948632166,-34.28392032,0.00032815,7]
[392781593,1761948632178,-412.973,0.00032815,7]
[392781594,1761948632189,-52.74307968,0.00032815,7]
[392781595,1761948632199,-200.0,0.00033163,2]
[392781596,1761948632208,-642.98465242,0.00033221,5]
[392781597,1761948632221,-357.01534758,0.00033221,5]
[392781598,1761948632230,-512.104545,0.00033486,2]
[392781599,1761948632240,-335.21380487,0.00033614,2]
[392781600,1761948632249,-382.71838978,0.00033614,2]
[392781601,1761948632259,-150.0,0.000337,2]
[392781602,1761948632269,-160.0,0.00033867,2]
[392781604,1761948632278,-103.4359087,0.00034275,2]
[392781606,1761948632291,-209.4874039,0.00034275,2]
[392781608,1761948632300,-159.96937446,0.00034343,5]
[392781610,1761948632310,-260.0,0.00034415,2]
[392781612,1761948632319,-200.0,0.00034701,3]
[392781614,1761948632328,-360.0,0.00034963,2]
[392781616,1761948632338,-412.0,0.00035124,2]
[392781618,1761948632347,-127.22211732,0.00035194,3]
[392781620,1761948632359,-170.98788268,0.00035194,3]
[392781622,1761948632369,-240.0,0.00035292,3]
[392781624,1761948632378,-184.364526,0.00035383,2]
[392781860,1761948637943,-371.37494849,0.00033614,2]
[392781862,1761948637953,-607.50889213,0.00035383,2]
[392781868,1761948638004,-423.05658993,0.00035383,2]
[392781870,1761948638014,-460.0,0.00035511,2]
[392781872,1761948638024,-580.0,0.00036058,2]
[392781874,1761948638034,-150.0,0.00036293,2]
[392781876,1761948638045,-817.6612136,0.00036618,30]
[392781878,1761948638056,-4021.94969412,0.0003681,2]
[392781880,1761948638067,-273.22,0.00036889,10]
[392781882,1761948638077,-227.68,0.00036889,10]
[392781884,1761948638088,-189.73,0.00036889,10]
[392781887,1761948638098,-158.11,0.00036889,10]
[392781889,1761948638108,-762.98,0.0003689,3]
[392781891,1761948638119,-151.0,0.00036897,2]
[392781893,1761948638129,-171.31468171,0.00036897,2]
[392781895,1761948638139,-151.0,0.00036897,2]
[392781897,1761948638149,-151.0,0.00036897,2]
[392781898,1761948638158,-194.5303871,0.00036897,2]
[392781900,1761948638168,-151.0,0.00036897,2]
[392781902,1761948638178,-151.0,0.00036897,2]
[392781904,1761948638188,-151.0,0.00036897,2]
[392781907,1761948638197,-151.0,0.00036897,2]
[392781909,1761948638207,-151.0,0.00036897,2]
[392781911,1761948638217,-151.0,0.00036897,2]
[392781913,1761948638228,-151.0,0.00036897,2]
[392781915,1761948638238,-151.0,0.00036897,2]
[392781917,1761948638248,-151.0,0.00036897,2]
[392781918,1761948638258,-151.0,0.00036897,2]
[392781920,1761948638267,-151.0,0.00036897,2]
[392781922,1761948638276,-151.0,0.00036897,2]
[392781924,1761948638286,-151.0,0.00036897,2]
[392781925,1761948638296,-151.0,0.00036897,2]
[392781926,1761948638306,-151.0,0.00036897,2]
[392781927,1761948638316,-151.0,0.00036897,2]
[392781928,1761948638326,-151.0,0.00036897,2]
[392781929,1761948638336,-151.0,0.00036897,2]
[392781930,1761948638346,-151.0,0.00036897,2]
[392781931,1761948638356,-151.0,0.00036897,2]
[392781932,1761948638366,-449.21505624,0.00036899,15]
[392781933,1761948638376,-500.0,0.00036899,15]
[392781934,1761948638386,-500.0,0.00036899,2]
[392781935,1761948638396,-500.0,0.00036899,15]
[392781936,1761948638406,-606.31940991,0.00036899,15]
[392781937,1761948638415,-500.0,0.00036899,15]
[392781938,1761948638425,-500.0,0.00036899,15]
[392781939,1761948638435,-500.0,0.00036899,15]
[392781940,1761948638445,-492.0126711,0.00036899,2]
[392781941,1761948638455,-500.0,0.00036899,15]
[392781942,1761948638466,-500.0,0.00036899,15]
[392781943,1761948638480,-500.0,0.00036899,15]
[392781944,1761948638490,-500.0,0.00036899,15]
[392781945,1761948638500,-500.0,0.00036899,15]
[392781946,1761948638510,-359.79406706,0.00036899,15]
[392781947,1761948638520,-500.0,0.00036899,15]
[392781948,1761948638530,-500.0,0.00036899,15]
[392781949,1761948638540,-500.0,0.00036899,15]
[392781950,1761948638550,-500.0,0.00036899,15]
[392781951,1761948638560,-500.0,0.00036899,15]
[392781952,1761948638571,-500.0,0.00036899,15]
[392781953,1761948638581,-378.74270585,0.00036899,15]
[392781954,1761948638592,-500.0,0.00036899,15]
[392781955,1761948638602,-500.0,0.00036899,15]
[392781956,1761948638613,-500.0,0.00036899,15]
[392781957,1761948638623,-500.0,0.00036899,15]
[392781958,1761948638635,-500.0,0.00036899,15]
[392781959,1761948638645,-2685.68352337,0.000369,3]
[392781960,1761948638658,-1185.0,0.000369,3]
[392781979,1761948643055,-660.22213065,0.00033614,2]
[392781980,1761948643065,-111944.66345463,0.000369,3]
[392781981,1761948643074,-156.265,0.00036908,2]